bitfinex-derivatives/quotes_SOLF0:USTF0_20250905
["timestamp","ask_amount","ask_price","bid_price","bid_amount"]
[1757032927991,1.37510858,202.29,202.26,8.13348678]
[1757032928190,7.57,202.28,202.26,8.13348678]
[1757032929093,7.57,202.28,202.26,0.03348678]
[1757032931988,1.37510858,202.29,202.26,0.03348678]
[1757032932184,8.94510858,202.27,202.26,0.03348678]
[1757032938195,9.44510858,202.27,202.14,7.44]
[1757032938498,9.36510858,202.16,202.1,7.44]
[1757032938892,7.99,202.13,202.1,7.44]
[1757032939286,1.37510858,202.14,202.08,1.37510858]
[1757032939593,7.99,202.11,202.07,7.44]
[1757032939791,1.41198357,202.14,202.07,7.44]
[1757032939995,1.37510858,202.14,202.07,7.44]
[1757032940296,1.37510858,202.14,202.07,8.81510858]
[1757032940297,0.03388985,202.13,202.07,8.81510858]
[1757032941190,0.03388985,202.13,202.07,7.44]
[1757032941394,0.03388985,202.13,202.07,8.81510858]
[1757032942094,7.99,202.11,202.05,1.37510858]
[1757032942289,7.99,202.11,202.05,8.81510858]
[1757032943495,7.99,202.11,202.05,7.44]
[1757032946190,0.03388985,202.13,202.05,7.44]
[1757032947898,8.02388985,202.13,202.05,7.44]
[1757032956602,8.02388985,202.13,202.01,7.44]
[1757032956603,7.99,202.11,202.01,7.44]
[1757032956809,7.99,202.11,201.89,84.1869]
[1757032956810,7.99,202.08,201.95,7.44]
[1757032957013,7.99,202.08,201.97,7.44]
[1757032957305,0.03779119,202.04,201.97,7.44]
[1757032957807,0.03779119,202.04,201.98,0.03586045]
[1757032958012,0.03779119,202.04,201.99,7.44]
[1757032958208,0.03779119,202.04,201.98,0.03586045]
[1757032958607,0.03779119,202.04,201.99,7.44]
[1757032959414,0.03779119,202.04,201.98,2.19121349]
[1757032959606,0.03779119,202.04,202.01,2.15535304]
[1757032960009,0.03779119,202.04,202.02,7.44]
[1757032960216,8.02779119,202.04,201.98,9.63121349]
[1757032961521,8.02779119,202.04,201.98,7.47586045]
[1757032966021,8.02779119,202.04,201.98,0.03586045]
[1757032967222,8.02779119,202.04,201.99,7.44]
[1757032967428,8.02779119,202.04,201.98,0.03586045]
[1757032970228,7.45,202.13,202.01,7.94]
[1757032970428,7.45,202.13,202.06,2.15535304]
[1757032970621,7.45,202.13,202.07,7.94]
[1757032970826,7.45,202.18,202.07,7.94]
[1757032971026,7.45,202.15,202.0,32.22]
[1757032971221,7.45,202.15,202.04,7.94]
[1757032971429,0.03798544,202.1,202.04,7.94]
[1757032972228,0.03798544,202.1,202.06,2.15535304]
[1757032972735,0.03798544,202.1,202.07,7.94]
[1757032972935,0.03798544,202.1,202.06,2.15535304]
[1757032973333,0.03798544,202.1,202.07,7.94]
[1757032973536,0.03798544,202.1,202.06,2.15535304]
[1757032973729,0.03798544,202.1,202.07,7.94]
[1757032974229,0.03798544,202.1,202.08,7.94]
[1757032974429,0.03798544,202.1,202.07,7.94]
[1757032975026,0.03798544,202.1,202.06,2.15535304]
[1757032975231,0.03798544,202.1,202.07,7.94]
[1757032975835,0.03798544,202.1,202.06,2.15535304]
[1757032976531,0.03798544,202.1,202.07,7.94]
[1757032977136,0.03798544,202.1,202.06,2.15535304]
[1757032977332,0.03798544,202.1,202.07,7.94]
[1757032977931,0.03798544,202.1,202.09,2.15535304]
[1757032978231,0.03798544,202.1,202.09,10.09535304]
[1757032981741,7.45,202.18,202.09,10.09535304]
[1757032981940,7.45,202.18,202.1,7.94]
[1757032982939,7.45,202.18,202.12,0.03163871]
[1757032986533,9.60535304,202.18,202.12,0.03163871]
[1757032986734,5.52825094,202.2,202.16,2.15535304]
[1757032986940,7.45,202.28,202.17,7.94]
[1757032987234,7.45,202.27,202.17,7.94]
[1757032987439,7.45,202.27,202.2,0.03289798]
[1757032987640,7.45,202.27,202.21,4.48469282]
[1757032987840,7.45,202.27,202.22,4.48469282]
[1757032988041,7.45,202.27,202.2,0.03289798]
[1757032988239,7.45,202.27,202.21,4.48468322]
[1757032988435,7.45,202.27,202.22,4.48468322]
[1757032988638,7.45,202.27,202.2,0.03289798]
[1757032988848,7.45,202.27,202.21,4.48269645]
[1757032989046,7.45,202.27,202.22,4.48269645]
[1757032989244,7.45,202.27,202.2,0.03289798]
[1757032989544,2.15535304,202.25,202.2,0.03289798]
[1757032989745,7.45,202.24,202.2,0.03289798]
[1757032989944,2.15535304,202.25,202.2,0.03289798]
[1757032990743,2.15535304,202.28,202.2,0.03289798]
[1757032991040,51.86825094,202.3,202.2,0.03289798]
[1757032991248,7.45,202.27,202.21,4.4655956]
[1757032991441,7.45,202.27,202.2,0.03289798]
[1757032991635,7.45,202.27,202.21,4.46432039]
[1757032991843,7.45,202.27,202.2,0.03289798]
[1757032992045,7.45,202.27,202.21,4.46432224]
[1757032992249,7.45,202.27,202.2,0.03289798]
[1757032992544,7.45,202.27,202.21,4.46297267]
[1757032992740,7.45,202.27,202.2,0.03289798]
[1757032992937,7.45,202.27,202.21,4.46297267]
[1757032993140,7.45,202.27,202.2,0.03289798]
[1757032993350,7.45,202.27,202.21,4.46260616]
[1757032993548,7.45,202.27,202.2,0.03289798]
[1757033005450,1.37786368,202.25,202.2,0.03289798]
[1757033006255,7.45,202.24,202.2,0.03289798]
[1757033006554,1.37786368,202.25,202.2,0.03289798]
[1757033007455,7.45,202.24,202.2,0.03289798]
[1757033007754,1.37786368,202.25,202.2,0.03289798]
[1757033007956,7.45,202.24,202.2,7.73289798]
[1757033008252,1.37786368,202.25,202.2,7.73289798]
[1757033009149,7.45,202.24,202.2,7.73289798]
[1757033009649,1.37786368,202.25,202.2,7.73289798]
[1757033010054,7.45,202.24,202.2,7.73289798]
[1757033010556,1.37786368,202.25,202.2,7.73289798]
[1757033010757,7.45,202.24,202.2,7.73289798]
[1757033011157,1.37786368,202.25,202.2,7.73289798]
[1757033011758,7.45,202.24,202.2,7.73289798]
[1757033011959,1.37786368,202.25,202.2,7.73289798]
[1757033012955,7.45,202.24,202.2,7.73289798]
[1757033014553,1.37786368,202.25,202.2,0.03289798]
[1757033015263,1.37786368,202.25,202.21,4.48895729]
[1757033015562,1.37786368,202.25,202.2,7.73289798]
[1757033015763,1.37786368,202.25,202.21,4.4891124]
[1757033016057,7.45,202.24,202.22,4.4891124]
[1757033016264,7.45,202.24,202.23,4.4891124]
[1757033016663,1.37786368,202.25,202.2,0.03289798]
[1757033016859,7.45,202.24,202.21,4.49003391]
[1757033017065,7.45,202.24,202.2,7.73289798]
[1757033017364,1.37786368,202.25,202.21,4.49013588]
[1757033017563,1.37786368,202.25,202.22,4.49013588]
[1757033017760,7.45,202.24,202.2,7.73289798]
[1757033017960,1.37786368,202.25,202.21,4.49108052]
[1757033018162,1.37786368,202.25,202.22,4.49108052]
[1757033018361,7.45,202.24,202.2,7.73289798]
[1757033018556,7.45,202.24,202.21,4.49206316]
[1757033018756,1.37786368,202.25,202.2,7.73289798]
[1757033018757,1.37786368,202.25,202.22,4.49206316]
[1757033018963,7.45,202.24,202.2,7.73289798]
[1757033019165,1.37786368,202.25,202.21,4.49206316]
[1757033019364,7.45,202.24,202.22,4.49206316]
[1757033019666,7.45,202.24,202.2,7.73289798]
[1757033019866,1.37786368,202.25,202.21,4.49311933]
[1757033020067,1.37786368,202.25,202.22,4.49311933]
[1757033020261,6.90611462,202.25,202.2,7.73289798]
[1757033020564,7.45,202.24,202.21,4.49430116]
[1757033020765,6.90611462,202.25,202.22,4.49430116]
[1757033020966,7.45,202.24,202.2,7.73289798]
[1757033021165,1.37786368,202.21,202.2,0.03289798]
[1757033021366,8.82786368,202.21,202.2,0.03289798]
[1757033021567,8.82786368,202.21,202.13,7.7]
[1757033021769,1.37786368,202.17,202.14,16.81290977]
[1757033021966,8.82786368,202.17,202.15,9.11290977]
[1757033022168,8.82786368,202.17,202.16,4.4961914]
[1757033024266,1.37786368,202.17,202.16,4.49747429]
[1757033025568,8.82786368,202.17,202.16,4.49747429]
[1757033026979,8.82786368,202.17,202.16,4.4973176]
[1757033030272,1.37786368,202.17,202.16,4.4973176]
[1757033031272,1.37786368,202.17,202.16,11.9073176]
[1757033033876,1.37786368,202.17,202.16,11.91091277]
[1757033037275,0.03227424,202.19,202.17,7.41]
[1757033037775,5.52782531,202.26,202.18,1.87786368]
[1757033037977,1.37786368,202.24,202.19,7.41]
[1757033038170,1.37786368,202.24,202.16,1.41024717]
[1757033038371,1.37786368,202.24,202.17,7.41]
[1757033038670,1.37786368,202.24,202.18,4.63285866]
[1757033038882,1.37786368,202.24,202.19,4.63285866]
[1757033039180,1.37786368,202.24,202.21,7.41]
[1757033039378,1.37786368,202.24,202.22,4.63285866]
[1757033039575,1.37786368,202.24,202.21,7.41]
[1757033039775,1.37786368,202.24,202.22,12.04291117]
[1757033040078,1.37786368,202.24,202.22,7.41]
[1757033042378,1.37786368,202.24,202.2,7.41]
[1757033042584,1.37786368,202.24,202.22,7.41]
[1757033043380,1.37786368,202.24,202.2,7.41]
[1757033043581,9.02786368,202.22,202.19,0.03791379]
[1757033043777,1.37786368,202.22,202.21,7.41]
[1757033043987,1.37786368,202.22,202.19,7.44791379]
[1757033044386,1.37786368,202.22,202.2,4.63394449]
[1757033044585,1.37786368,202.22,202.19,7.44791379]
[1757033044791,1.37786368,202.22,202.2,4.62956275]
[1757033045083,6.90568899,202.28,202.21,4.62972327]
[1757033045288,1.37786368,202.28,202.22,12.03947436]
[1757033045488,1.37786368,202.28,202.22,7.41]
[1757033046792,1.37786368,202.26,202.2,7.41]
[1757033047093,7.65,202.25,202.22,7.41]
[1757033047790,40.38089602,202.32,202.19,7.44791379]
[1757033047791,7.65,202.22,202.19,7.44791379]
[1757033047989,7.65,202.22,202.2,4.62966853]
[1757033048184,7.65,202.22,202.19,7.41]
[1757033048390,7.65,202.22,202.19,7.44465928]
[1757033049490,1.37786368,202.23,202.2,12.04023814]
[1757033049694,1.37786368,202.25,202.19,0.03465928]
[1757033049894,1.37786368,202.25,202.2,4.63017935]
[1757033050100,1.37786368,202.25,202.21,4.63017935]
[1757033050398,1.37786368,202.25,202.23,7.41]
[1757033057598,1.37786368,202.25,202.2,7.41]
[1757033057795,5.52782531,202.27,202.22,7.74]
[1757033058000,1.37786368,202.28,202.24,7.74]
[1757033058001,9.06786368,202.28,202.24,7.74]
[1757033058199,14.59568899,202.28,202.2,7.74]
[1757033058397,14.59568899,202.28,202.22,7.74]
[1757033058594,9.06786368,202.28,202.22,7.77541987]
[1757033058902,9.06786368,202.26,202.23,12.38981108]
[1757033059396,1.37786368,202.24,202.23,12.38981108]
[1757033059701,1.37786368,202.24,202.22,7.77541987]
[1757033060102,1.37786368,202.24,202.23,7.74]
[1757033060500,1.37786368,202.26,202.22,0.03541987]
[1757033060902,1.37786368,202.26,202.23,7.74]
[1757033061403,1.37786368,202.26,202.22,0.03541987]
[1757033062193,1.37786368,202.26,202.23,7.74]
[1757033062801,1.37786368,202.26,202.22,0.03541987]
[1757033062999,5.52782531,202.29,202.24,7.74]
[1757033063199,1.37786368,202.26,202.24,7.74]
[1757033065506,5.52782531,202.3,202.24,7.74]
[1757033065706,7.69,202.28,202.24,7.74]
[1757033066311,2.15255058,202.29,202.24,7.74]
[1757033066605,7.69,202.28,202.24,7.74]
[1757033067009,2.15255058,202.29,202.24,7.74]
[1757033068206,7.68037589,202.29,202.24,7.74]
[1757033068411,7.69,202.28,202.24,7.74]
[1757033068607,2.15255058,202.29,202.24,7.74]
[1757033068807,5.52782531,202.3,202.23,7.74]
[1757033069012,5.52782531,202.33,202.25,7.74]
[1757033069312,5.52782531,202.33,202.27,7.74]
[1757033069508,5.52782531,202.34,202.27,7.77619714]
[1757033069707,7.69,202.35,202.27,7.77619714]
[1757033071807,7.69,202.35,202.28,4.64501249]
[1757033072005,7.69,202.35,202.28,7.74]
[1757033075712,2.15255058,202.34,202.27,0.03619714]
[1757033075916,7.69,202.33,202.27,0.03619714]
[1757033076815,7.69,202.33,202.27,7.77619714]
[1757033077514,2.15255058,202.31,202.27,0.03619714]
[1757033077708,7.69,202.3,202.27,0.03619714]
[1757033078216,9.84255058,202.28,202.27,0.03619714]
[1757033079815,9.84255058,202.28,202.21,7.74]
[1757033080016,7.69,202.24,202.21,7.74]
[1757033080409,9.84255058,202.25,202.16,7.74]
[1757033080606,9.84255058,202.25,202.18,7.74]
[1757033081006,0.03423569,202.24,202.18,7.74]
[1757033086121,0.03423569,202.24,202.19,4.56124175]
[1757033086322,0.03423569,202.24,202.15,7.74]
[1757033086621,0.03423569,202.24,202.17,7.74]
[1757033086822,0.03423569,202.24,202.19,7.74]
[1757033087022,0.03423569,202.24,202.15,7.74]
[1757033087322,0.03423569,202.24,202.17,7.74]
[1757033087522,0.03423569,202.24,202.18,4.5609388]
[1757033087724,0.03423569,202.24,202.2,7.74]
[1757033088028,0.03423569,202.24,202.15,7.62]
[1757033088216,0.03423569,202.24,202.17,7.62]
[1757033088413,0.03423569,202.24,202.19,7.62]
[1757033088619,0.03423569,202.24,202.15,7.62]
[1757033088821,0.03423569,202.24,202.17,7.62]
[1757033089023,7.87423569,202.24,202.18,4.5607901]
[1757033089319,7.87423569,202.24,202.19,4.5607901]
[1757033089521,7.87423569,202.24,202.15,7.62]
[1757033089717,7.87423569,202.24,202.16,4.55518307]
[1757033089920,7.87423569,202.24,202.18,7.62]
[1757033090117,7.87423569,202.24,202.2,7.62]
[1757033090326,7.87423569,202.24,202.15,7.62]
[1757033090528,7.87423569,202.24,202.17,7.62]
[1757033090725,7.87423569,202.24,202.18,4.5551211]
[1757033090923,7.87423569,202.24,202.2,7.62]
[1757033091924,7.87423569,202.24,202.15,7.62]
[1757033092123,7.87423569,202.24,202.16,4.55490197]
[1757033092328,7.87423569,202.24,202.18,7.62]
[1757033092622,7.87423569,202.24,202.19,4.55490197]
[1757033092819,7.87423569,202.24,202.15,7.62]
[1757033093020,7.87423569,202.24,202.17,7.62]
[1757033093218,7.87423569,202.24,202.18,4.554715]
[1757033093428,7.87423569,202.24,202.2,7.62]
[1757033093727,7.84,202.23,202.2,7.62]
[1757033094630,7.84,202.23,202.21,4.55484635]
[1757033094827,7.84,202.23,202.2,7.62]
[1757033095129,7.84,202.23,202.21,4.48945657]
[1757033095330,7.84,202.23,202.22,4.48945657]
[1757033098328,0.03423569,202.24,202.22,4.48945657]
[1757033098535,7.87423569,202.24,202.13,7.62]
[1757033098835,7.87423569,202.24,202.15,7.62]
[1757033099026,7.87423569,202.24,202.17,7.62]
[1757033099224,7.87423569,202.24,202.18,4.48870489]
[1757033099424,7.87423569,202.24,202.2,7.62]
[1757033099625,7.87423569,202.24,202.21,12.10870489]
[1757033099828,7.84,202.23,202.22,4.48870489]
[1757033101236,7.84,202.23,202.21,7.62]
[1757033101435,7.84,202.23,202.22,4.48821345]
[1757033101930,7.84,202.23,202.21,7.62]
[1757033107352,7.84,202.23,202.15,7.62]
[1757033107555,9.99255058,202.23,202.16,4.48835784]
[1757033107757,9.99255058,202.23,202.17,12.10835784]
[1757033107957,7.84,202.22,202.19,7.62]
[1757033108646,7.84,202.22,202.08,79.16832031]
[1757033108647,7.84,202.22,202.09,3.87679748]
[1757033108850,7.84,202.19,202.11,7.62]
[1757033109054,2.15255058,202.17,202.12,4.488262]
[1757033109253,2.15255058,202.17,202.11,7.62]
[1757033109254,10.02657398,202.17,202.14,7.62]
[1757033109752,2.18657398,202.17,202.1,7.62]
[1757033109953,2.18657398,202.17,202.11,4.48815148]
[1757033110152,7.84,202.16,202.13,7.62]
[1757033112252,7.84,202.16,202.1,7.62]
[1757033112461,9.99255058,202.14,202.05,11.49446825]
[1757033112661,7.84,202.1,202.06,4.48511338]
[1757033112862,7.84,202.1,202.07,12.10511338]
[1757033113052,7.84,202.1,202.07,7.62]
[1757033113663,7.84,202.1,201.99,7.62]
[1757033113961,2.15255058,202.08,202.01,7.62]
[1757033114165,0.03600691,202.07,202.02,4.48356966]
[1757033114363,7.87600691,202.07,202.04,7.62]
[1757033115060,7.87600691,202.07,201.99,7.62]
[1757033115061,7.84,202.06,201.99,7.62]
[1757033115361,7.84,202.06,202.01,7.62]
[1757033115564,7.84,202.06,201.99,7.62]
[1757033115751,7.84,202.06,201.98,76.58475718]
[1757033115959,7.84,202.06,202.0,7.62]
[1757033119460,0.03600691,202.07,202.0,7.62]
[1757033124969,8.21,202.16,202.04,2.15255058]
[1757033125168,8.21,202.16,202.05,7.42]
[1757033125667,1.37939781,202.13,202.07,7.42]
[1757033126367,9.58939781,202.13,202.09,7.42]
[1757033126670,1.37939781,202.13,202.08,0.03537233]
[1757033127268,1.37939781,202.15,202.09,7.42]
[1757033128567,9.58939781,202.15,202.09,7.42]
[1757033129361,9.58939781,202.13,202.08,0.03537233]
[1757033129565,9.58939781,202.13,202.09,7.42]
[1757033129764,9.58939781,202.13,202.07,1.37939781]
[1757033130064,9.58939781,202.13,202.03,18.64]
[1757033130065,8.21,202.12,202.09,7.45743011]
[1757033130370,8.21,202.12,202.09,7.42]
[1757033130562,9.58939781,202.11,202.08,0.03570719]
[1757033130768,8.21,202.1,202.08,0.03570719]
[1757033130965,9.58939781,202.11,202.04,7.42]
[1757033131270,8.21,202.1,202.07,0.03731646]
[1757033131471,1.37939781,202.09,202.07,0.03731646]
[1757033133671,1.37939781,202.09,202.07,7.45731646]
[1757033133868,9.58939781,202.09,202.07,0.03731646]
[1757033135664,8.21,202.08,202.07,0.03731646]
[1757033143281,8.21,202.09,202.07,0.03731646]
[1757033143486,9.58939781,202.09,202.07,7.45731646]
[1757033143686,9.58939781,202.09,202.07,0.03731646]
[1757033144188,8.21,202.08,202.07,0.03731646]
[1757033150992,8.06,202.13,202.07,0.03731646]
[1757033151287,1.37939781,202.09,202.07,7.61731646]
[1757033151890,9.43939781,202.09,202.07,0.03731646]
[1757033152092,1.37939781,202.09,202.07,0.03731646]
[1757033152292,1.37939781,202.09,202.07,7.61731646]
[1757033161402,8.06,202.08,202.07,0.03731646]
[1757033164698,8.06,202.08,202.0,7.58]
[1757033165002,9.43939781,202.02,201.96,7.58]
[1757033165209,1.37939781,201.99,201.97,12.06180565]
[1757033165401,1.37939781,201.99,201.98,4.48180565]
[1757033165803,1.37939781,201.99,201.98,12.06180565]
[1757033166706,1.41125646,202.01,201.98,12.06180565]
[1757033166905,1.41125646,202.01,201.99,4.48180565]
[1757033167107,1.41125646,202.01,202.0,4.48180565]
[1757033167300,0.03185865,202.01,202.0,7.58]
[1757033167508,0.03185865,202.01,202.0,12.05846707]
[1757033167908,0.03185865,202.01,201.98,7.58]
[1757033168102,0.03185865,202.01,201.99,4.47857829]
[1757033168408,0.03185865,202.01,201.99,7.58]
[1757033168812,0.03185865,202.01,201.95,7.58]
[1757033169013,0.03185865,202.01,201.97,7.58]
[1757033169213,0.03185865,202.01,201.99,7.58]
[1757033169404,0.03185865,202.01,201.95,7.58]
[1757033169609,0.03185865,202.01,201.97,7.58]
[1757033169804,0.03185865,202.01,201.98,12.05688973]
[1757033170011,0.03185865,202.01,201.99,12.05688973]
[1757033170208,0.03185865,202.01,201.99,7.58]
[1757033171515,0.03185865,202.01,201.94,1.37939781]
[1757033171713,0.03185865,202.01,201.95,15.9351098]
[1757033171908,0.03185865,202.01,201.97,7.58]
[1757033172114,0.03185865,202.01,201.98,4.47649884]
[1757033172317,0.03185865,202.01,201.99,12.05649884]
[1757033172514,0.03185865,202.01,201.94,1.37939781]
[1757033172715,0.03185865,202.01,201.99,7.58]
[1757033173017,0.03185865,202.01,202.0,13.43599628]
[1757033173312,0.03185865,202.01,202.0,12.05659847]
[1757033175609,0.03185865,202.01,202.0,4.47659847]
[1757033175812,0.03185865,202.01,201.96,7.58]
[1757033176011,0.03185865,202.01,201.97,4.47895562]
[1757033176316,0.03185865,202.01,201.99,7.58]
[1757033176522,0.03185865,202.01,202.0,7.58]
[1757033176720,0.03185865,202.01,202.0,12.05867985]
[1757033180315,0.03185865,202.01,202.0,7.58]
[1757033180520,0.03185865,202.01,202.0,12.0491278]
[1757033182012,0.03185865,202.01,202.0,7.58]
[1757033182212,8.94125646,202.01,201.96,7.62]
[1757033182416,8.94125646,202.01,201.98,7.62]
[1757033182616,8.94125646,202.01,201.99,4.4690704]
[1757033182820,8.94125646,202.01,201.98,7.62]
[1757033183021,8.94125646,202.01,201.99,4.46906936]
[1757033183322,1.41125646,202.01,201.91,7.62]
[1757033183518,1.37939781,201.99,201.93,1.37939781]
[1757033183818,1.37939781,201.99,201.94,8.34969092]
[1757033184017,0.0343149,201.98,201.96,7.62]
[1757033184218,0.0343149,201.98,201.97,12.08893259]
[1757033184620,0.0343149,201.98,201.97,7.62]
[1757033187618,0.0343149,201.98,201.97,12.08877369]
[1757033187823,0.0343149,201.98,201.97,7.62]
[1757033188018,0.0343149,201.98,201.97,12.08877369]
[1757033188323,0.0343149,201.98,201.97,7.62]
[1757033190220,0.0343149,201.98,201.97,12.08712377]
[1757033191221,7.53,201.97,201.91,7.62]
[1757033191419,7.53,201.97,201.93,7.62]
[1757033191619,7.53,201.97,201.94,4.46595931]
[1757033191822,7.56615957,201.97,201.93,7.62]
[1757033192124,7.56615957,201.97,201.94,4.46612206]
[1757033192323,7.56615957,201.97,201.93,7.62]
[1757033192524,7.53,201.96,201.93,7.62]
[1757033193126,0.03615957,201.97,201.87,7.62]
[1757033193326,0.03615957,201.97,201.89,7.62]
[1757033193528,0.03615957,201.97,201.91,7.62]
[1757033193726,0.03615957,201.97,201.93,7.62]
[1757033194027,0.03615957,201.97,201.94,12.08486455]
[1757033194228,0.03615957,201.97,201.94,7.62]
[1757033195322,7.56615957,201.97,201.94,7.62]
[1757033195526,2.19446176,201.97,201.87,7.62]
[1757033195827,2.19446176,201.97,201.89,7.62]
[1757033195828,7.53,201.96,201.89,7.62]
[1757033196031,7.53,201.96,201.9,4.46281447]
[1757033196217,7.53,201.96,201.89,7.62]
[1757033196218,0.03479849,201.94,201.91,4.46281447]
[1757033196422,7.53,201.93,201.92,4.46281447]
[1757033198327,7.53,201.93,201.83,2.15830219]
[1757033198524,7.53,201.93,201.85,7.62]
[1757033198724,7.53,201.93,201.83,2.15830219]
[1757033198725,7.53,201.93,201.87,7.62]
[1757033199028,7.53,201.93,201.89,7.62]
[1757033199227,7.53,201.93,201.9,12.07972154]
[1757033199429,7.53,201.93,201.91,4.45972154]
[1757033199628,7.53,201.93,201.9,7.62]
[1757033199825,2.15830219,201.94,201.91,4.45880808]
[1757033200031,9.68830219,201.99,201.92,12.0787127]
[1757033200232,9.68830219,201.99,201.93,4.4587127]
[1757033200420,9.68830219,201.99,201.92,7.62]
[1757033200625,7.53,201.99,201.93,4.45849605]
[1757033200825,9.68830219,201.99,201.95,7.62]
[1757033201025,2.15830219,201.99,201.95,7.62]
[1757033201227,7.53,201.98,201.95,7.62]
[1757033202431,2.15830219,201.99,201.86,2.15830219]
[1757033202631,2.15830219,201.99,201.88,7.62]
[1757033202831,2.15830219,201.99,201.9,7.62]
[1757033203032,2.15830219,201.99,201.91,4.45908666]
[1757033203230,2.15830219,201.99,201.93,7.62]
[1757033203426,2.15830219,201.99,201.94,4.45908666]
[1757033203730,7.53,201.98,201.95,4.45908666]
[1757033203932,7.53,201.98,201.87,7.62]
[1757033204123,7.53,201.98,201.89,7.62]
[1757033204327,7.53,201.98,201.91,7.62]
[1757033204531,7.53,201.98,201.93,7.62]
[1757033204732,7.53,201.98,201.92,4.45975282]
[1757033204733,7.53,201.98,201.95,7.62]
[1757033204934,7.53,201.98,201.96,4.45975282]
[1757033205232,2.15830219,202.01,201.97,4.46035605]
[1757033205427,9.68830219,202.01,201.95,7.62]
[1757033205632,9.68830219,202.01,201.97,7.62]
[1757033206139,7.53,202.0,201.97,7.62]
[1757033207030,2.15830219,202.05,201.92,7.62]
[1757033207228,2.15830219,202.05,201.94,7.62]
[1757033207427,2.15830219,202.05,201.9,2.15830219]
[1757033207428,2.15830219,202.05,201.96,7.62]
[1757033207632,7.53,202.04,201.97,4.46123897]
[1757033207831,7.53,202.04,201.96,7.62]
[1757033208034,7.53,202.04,201.97,4.46225474]
[1757033208228,7.53,202.04,201.96,7.62]
[1757033208429,7.53,202.04,201.97,4.46337364]
[1757033208726,7.53,202.04,201.98,4.46334978]
[1757033208928,7.53,202.04,201.96,7.62]
[1757033209133,7.53,202.04,201.97,4.46340633]
[1757033209332,7.53,202.04,201.98,4.46340633]
[1757033209534,9.68830219,202.04,201.96,7.62]
[1757033209729,9.68830219,202.04,201.97,4.46363129]
[1757033209928,7.53,202.04,201.98,4.46363129]
[1757033210129,9.68830219,202.04,201.96,7.62]
[1757033210324,9.68830219,202.04,201.97,4.46368785]
[1757033210629,9.68830219,202.04,201.98,4.46368785]
[1757033210931,9.68830219,202.04,201.9,6.31762604]
[1757033210932,2.15830219,202.07,202.0,8.13]
[1757033211133,2.15830219,202.07,202.01,4.46368785]
[1757033211328,7.41,202.08,202.02,12.59265954]
[1757033211533,7.41,202.08,202.02,8.13]
[1757033213031,2.15830219,202.07,202.02,8.13]
[1757033213335,7.41,202.06,202.02,8.13]
[1757033213831,2.15830219,202.07,202.02,8.13]
[1757033214032,7.41,202.06,202.02,8.13]
[1757033214633,7.44123136,202.06,202.02,8.13]
[1757033214834,7.41,202.05,202.02,8.13]
[1757033221738,7.41,202.03,201.96,8.13]
[1757033222846,2.15830219,202.01,201.96,8.13]
[1757033223343,7.41,202.0,201.96,8.13]
[1757033224238,2.15830219,202.01,201.96,8.13]
[1757033224439,7.41,202.0,201.96,8.13]
[1757033224639,2.15830219,202.01,201.96,8.13]
[1757033224840,7.41,202.0,201.96,8.13]
[1757033225238,2.15830219,202.01,201.96,8.13]
[1757033225438,7.41,201.97,201.9,8.13]
[1757033225643,7.41,201.97,201.91,4.46301159]
[1757033225842,2.15830219,201.98,201.84,2.15830219]
[1757033225843,2.15830219,201.95,201.84,2.15830219]
[1757033226043,2.15830219,201.95,201.86,8.13]
[1757033226244,2.15830219,201.95,201.88,8.13]
[1757033226445,2.15830219,201.95,201.89,4.46322864]
[1757033226640,2.15830219,201.98,201.91,8.13]
[1757033226941,9.56830219,201.96,201.92,12.59322864]
[1757033227146,9.56830219,201.96,201.92,8.13]
[1757033227849,9.56830219,201.96,201.85,8.13]
[1757033228049,9.56830219,201.96,201.87,8.13]
[1757033228243,9.56830219,201.96,201.89,8.13]